bitfinex-derivatives/quotes_SOLF0:USTF0_20260302
["timestamp","ask_amount","ask_price","bid_price","bid_amount"]
[1772492769989,10.254,87.766,87.721,8.67180253]
[1772492770381,3.33207004,87.76,87.721,8.67180253]
[1772492770890,3.33207004,87.75,87.705,8.67180253]
[1772492773488,5.13048579,87.799,87.705,8.67180253]
[1772492773489,3.33207004,87.74,87.705,8.67180253]
[1772492773889,3.33207004,87.73,87.686,8.60773304]
[1772492774487,8.913781,87.75,87.686,8.60773304]
[1772492776389,10.258,87.727,87.686,8.60773304]
[1772492777483,10.258,87.727,87.676,10.264]
[1772492778087,10.258,87.727,87.676,18.86035161]
[1772492778283,10.258,87.727,87.68,18.86035161]
[1772492778487,10.258,87.727,87.681,8.59635161]
[1772492778884,10.257,87.738,87.692,8.59444323]
[1772492779979,20.505,87.777,87.695,8.58542224]
[1772492780183,8.913781,87.75,87.695,8.58542224]
[1772492780990,8.913781,87.75,87.68,10.264]
[1772492781384,8.913781,87.75,87.681,8.58353744]
[1772492781589,10.259,87.725,87.684,8.58353744]
[1772492782484,8.91464972,87.75,87.684,8.58353744]
[1772492782684,8.91464972,87.75,87.687,8.51207446]
[1772492784091,8.91464972,87.73,87.651,8.53647234]
[1772492784486,8.91464972,87.71,87.646,10.268]
[1772492785186,10.263,87.689,87.646,10.268]
[1772492785385,10.263,87.689,87.646,18.8025632]
[1772492785688,10.263,87.689,87.647,8.5345632]
[1772492786797,10.264,87.682,87.647,8.5345632]
[1772492787386,10.263,87.689,87.647,8.5345632]
[1772492788888,8.91464972,87.71,87.647,8.5345632]
[1772492789295,8.91464972,87.71,87.635,10.269]
[1772492789595,8.91464972,87.69,87.635,10.269]
[1772492789799,10.265,87.673,87.631,8.53286934]
[1772492791696,10.264,87.681,87.632,18.80302718]
[1772492791895,10.264,87.681,87.633,8.53402718]
[1772492792294,10.264,87.681,87.635,8.5528027]
[1772492794099,10.263,87.689,87.638,8.56055012]
[1772492794293,8.91464972,87.71,87.638,8.56055012]
[1772492794493,20.52,87.713,87.638,8.56055012]
[1772492794494,3.3321419,87.67,87.638,8.56055012]
[1772492797294,3.3321419,87.66,87.627,10.27]
[1772492797494,3.3321419,87.67,87.627,10.27]
[1772492797693,3.3321419,87.67,87.63,8.55480957]
[1772492800598,3.3321419,87.67,87.633,8.53612379]
[1772492802300,3.3321419,87.7,87.641,8.53647609]
[1772492802493,20.94361449,87.759,87.641,8.53647609]
[1772492802494,3.3321419,87.69,87.641,8.53647609]
[1772492802893,3.3321419,87.68,87.641,8.53647609]
[1772492805287,10.265,87.673,87.641,8.53647609]
[1772492805894,3.3321419,87.68,87.641,8.53647609]
[1772492806098,3.3321419,87.7,87.651,8.55577302]
[1772492806393,10.262,87.698,87.651,8.55577302]
[1772492807597,3.3321419,87.69,87.651,8.55577302]
[1772492812693,10.55474739,87.737,87.603,20.546]
[1772492812694,3.3321419,87.67,87.631,8.54547541]
[1772492814192,10.265,87.669,87.632,18.8132033]
[1772492814799,10.265,87.669,87.632,8.5442033]
[1772492815197,3.3321419,87.66,87.611,8.54445254]
[1772492815597,3.3321419,87.67,87.625,8.54445254]
[1772492815895,20.522,87.706,87.63,3.3321419]
[1772492816096,3.3321419,87.68,87.637,8.60238572]
[1772492816294,10.264,87.678,87.637,8.60238572]
[1772492816499,3.3321419,87.69,87.637,8.60238572]
[1772492816695,3.3321419,87.71,87.651,8.60238572]
[1772492816895,3.3321419,87.71,87.661,8.60261259]
[1772492817398,3.3321419,87.7,87.661,8.60261259]
[1772492818001,3.3321419,87.71,87.661,8.60261259]
[1772492819195,10.261,87.706,87.663,10.266]
[1772492819399,3.3321419,87.7,87.664,8.61014279]
[1772492820499,10.55474739,87.74,87.67,8.60578268]
[1772492820799,3.3321419,87.74,87.691,8.60578268]
[1772492821794,3.3321419,87.75,87.701,8.61055832]
[1772492822002,3.3321419,87.76,87.701,8.61055832]
[1772492822300,10.256,87.747,87.705,8.61055832]
[1772492822895,3.3321419,87.75,87.705,8.61055832]
[1772492823105,3.3321419,87.73,87.677,8.610768]
[1772492824307,10.258,87.726,87.679,8.5375388]
[1772492824602,3.3321419,87.72,87.648,14.03537469]
[1772492824799,3.3321419,87.67,87.643,8.5375388]
[1772492825002,3.3321419,87.66,87.628,10.27]
[1772492825202,3.3321419,87.69,87.631,6.87169926]
[1772492825707,3.3321419,87.68,87.633,6.87169926]
[1772492825907,3.3321419,87.67,87.633,6.87169926]
[1772492826105,3.3321419,87.66,87.633,6.87169926]
[1772492826705,10.266,87.662,87.613,6.8797364]
[1772492827206,8.92763673,87.68,87.613,6.8797364]
[1772492828208,10.265,87.671,87.616,6.85867309]
[1772492829209,10.265,87.671,87.619,6.85874095]
[1772492830112,10.264,87.682,87.626,6.88545927]
[1772492830300,8.92763673,87.7,87.626,6.88545927]
[1772492830705,10.264,87.675,87.628,6.88545927]
[1772492833312,10.263,87.686,87.633,6.90886022]
[1772492833811,8.92763673,87.7,87.633,6.90886022]
[1772492834406,10.263,87.687,87.635,6.91314118]
[1772492835610,10.263,87.687,87.637,6.91319698]
[1772492837111,10.264,87.68,87.637,6.91319698]
[1772492837905,10.265,87.671,87.637,6.91319698]
[1772492838110,20.519,87.721,87.617,10.271]
[1772492838111,8.92763673,87.68,87.618,6.92309556]
[1772492839221,10.266,87.664,87.62,17.19414866]
[1772492839916,10.266,87.664,87.621,6.91650599]
[1772492840518,8.92763673,87.68,87.624,6.91650599]
[1772492840519,10.265,87.671,87.624,6.91650599]
[1772492840713,8.33551707,87.698,87.624,6.91650599]
[1772492840918,8.92763673,87.7,87.624,6.91650599]
[1772492842211,10.263,87.688,87.642,6.91722809]
[1772492843216,10.264,87.681,87.642,6.91722809]
[1772492848027,10.264,87.681,87.643,10.268]
[1772492848422,3.33149542,87.68,87.643,10.268]
[1772492848617,3.33149542,87.68,87.643,17.19622766]
[1772492848821,14.15526639,87.725,86.484,167.91622844]
[1772492848822,10.62285159,87.732,87.688,1.54657628]
[1772492849031,5.69165326,87.747,87.71,3.33149542]
[1772492849822,3.33149542,87.76,87.711,1.56429722]
[1772492850022,5.69165326,87.749,87.709,10.26]
[1772492850227,5.69165326,87.749,87.7,3.33149542]
[1772492850432,5.69165326,87.749,87.701,1.60680981]
[1772492851321,5.69165326,87.749,87.702,1.62234769]
[1772492851522,5.69165326,87.749,87.71,3.33149542]
[1772492852233,5.69165326,87.749,87.71,13.59149542]
[1772492852524,5.69165326,87.749,87.71,10.26]
[1772492852829,5.69165326,87.749,87.702,1.62234769]
[1772492854329,5.69165326,87.749,87.704,10.261]
[1772492854924,5.69165326,87.747,87.696,10.262]
[1772492855727,10.256,87.746,87.699,10.262]
[1772492856326,10.256,87.746,87.699,12.08185908]
[1772492856928,5.69165326,87.745,87.66,1.83452537]
[1772492857228,5.69165326,87.72,87.66,1.83452537]
[1772492858228,10.259,87.722,87.669,5.57024164]
[1772492859333,10.259,87.722,87.671,10.265]
[1772492859633,10.259,87.722,87.672,5.57024164]
[1772492861336,10.259,87.722,87.675,5.57024164]
[1772492861832,5.69165326,87.716,87.666,10.265]
[1772492862535,10.259,87.722,87.672,5.57024164]
[1772492862930,5.69165326,87.746,87.672,5.57024164]
[1772492864336,5.69165326,87.746,87.69,10.263]
[1772492864537,5.69165326,87.746,87.689,5.57024164]
[1772492864738,10.258,87.733,87.689,15.83324164]
[1772492864936,5.69165326,87.746,87.69,5.57024164]
[1772492865933,10.257,87.741,87.699,5.57024164]
[1772492867335,5.69165326,87.746,87.702,5.57024164]
[1772492868037,10.256,87.744,87.702,5.57024164]
[1772492869931,15.91485193,87.744,87.702,5.57024164]
[1772492874244,15.91485193,87.744,87.704,10.261]
[1772492874839,10.255,87.752,87.713,5.89711578]
[1772492875744,5.65885193,87.739,87.69,5.89711578]
[1772492876345,5.65885193,87.753,87.704,5.89711578]
[1772492876646,5.65885193,87.768,87.721,5.89711578]
[1772492877340,5.65885193,87.758,87.707,5.89711578]
[1772492878249,5.65885193,87.758,87.714,10.26]
[1772492880048,8.98527388,87.75,87.707,5.89711578]
[1772492881346,8.98527388,87.75,87.709,10.26]
[1772492881546,5.65885193,87.719,87.661,5.89711578]
[1772492881743,3.32642195,87.71,87.661,5.89711578]
[1772492881945,5.65885193,87.719,87.671,5.89711578]
[1772492882252,20.51,87.759,87.671,5.89711578]
[1772492882253,3.32642195,87.73,87.671,5.89711578]
[1772492882451,3.32642195,87.72,87.671,5.89711578]
[1772492883049,10.258,87.728,87.671,5.89711578]
[1772492884250,10.258,87.728,87.688,10.263]
[1772492889455,5.65885193,87.709,87.659,5.89711578]
[1772492890850,3.32642195,87.72,87.671,5.89711578]
[1772492891355,3.32642195,87.71,87.671,5.89711578]
[1772492893148,3.32642195,87.72,87.671,5.89711578]
[1772492894358,3.32642195,87.72,87.677,10.264]
[1772492895251,3.32642195,87.72,87.683,10.263]
[1772492895460,3.32642195,87.72,87.671,5.89711578]
[1772492895461,3.32642195,87.71,87.671,5.89711578]
[1772492896344,3.32642195,87.71,87.676,10.264]
[1772492896545,3.32642195,87.71,87.671,5.89711578]
[1772492896950,3.32642195,87.71,87.677,10.264]
[1772492897957,3.32642195,87.7,87.669,10.265]
[1772492900861,3.32642195,87.7,87.675,10.264]
[1772492901059,3.32642195,87.7,87.658,6.32873101]
[1772492901760,6.10145423,87.709,87.658,6.32873101]
[1772492901963,3.32642195,87.7,87.658,6.32873101]
[1772492902362,3.32642195,87.7,87.668,10.265]
[1772492904058,3.32642195,87.7,87.674,10.264]
[1772492904360,3.32642195,87.71,87.68,6.32873101]
[1772492904558,3.32642195,87.71,87.634,21.16525208]
[1772492904559,6.10145423,87.753,87.701,6.32873101]
[1772492905062,1.98358978,87.796,87.689,6.32873101]
[1772492905063,6.10145423,87.739,87.689,6.32873101]
[1772492905661,3.32755876,87.73,87.695,10.262]
[1772492905861,3.32755876,87.72,87.673,6.32873101]
[1772492906056,20.506,87.776,87.673,6.32873101]
[1772492906057,3.32755876,87.71,87.673,6.32873101]
[1772492906255,6.10145423,87.709,87.654,6.32873101]
[1772492907261,3.32755876,87.7,87.666,10.265]
[1772492910469,6.10145423,87.699,87.658,10.266]
[1772492910766,3.32755876,87.69,87.654,6.32873101]
[1772492911166,3.32755876,87.71,87.657,6.32873101]
[1772492911363,21.22504314,87.752,87.657,6.32873101]
[1772492911364,3.32755876,87.7,87.657,6.32873101]
[1772492911564,6.10145423,87.699,87.657,6.32873101]
[1772492911962,3.32755876,87.69,87.657,6.32873101]
[1772492912467,3.32755876,87.69,87.658,10.266]
[1772492913662,6.10145423,87.699,87.658,10.266]
[1772492914064,10.261,87.707,87.665,10.266]
[1772492914264,16.36245423,87.707,87.665,10.266]
[1772492914469,6.10145423,87.723,87.68,10.264]
[1772492914665,6.10145423,87.723,87.68,16.59273101]
[1772492915370,6.10145423,87.723,87.684,16.59173101]
[1772492916866,6.10145423,87.74,87.691,6.32873101]
[1772492917067,3.32755876,87.75,87.701,6.32873101]
[1772492917270,3.32755876,87.74,87.701,6.32873101]
[1772492917460,3.32755876,87.74,87.702,10.261]
[1772492917764,6.10145423,87.749,87.701,6.32873101]
[1772492919363,6.10145423,87.749,87.709,10.26]
[1772492919761,6.10145423,87.749,87.701,6.32873101]
[1772492919762,6.10145423,87.749,87.71,6.32873101]
[1772492919971,6.10145423,87.749,87.666,21.16525208]
[1772492919972,6.10145423,87.799,87.721,6.32873101]
[1772492921269,6.10145423,87.799,87.72,8.90898554]
[1772492921270,6.10145423,87.798,87.749,10.256]
[1772492922471,8.90898554,87.82,87.75,6.32873101]
[1772492922472,10.249,87.809,87.75,6.32873101]
[1772492922666,6.10145423,87.808,87.75,6.32873101]
[1772492923264,6.10145423,87.803,87.721,6.32873101]
[1772492923871,6.10145423,87.803,87.741,6.32873101]
[1772492924273,6.10145423,87.803,87.753,10.255]
[1772492924578,6.10145423,87.803,87.754,6.32873101]
[1772492925279,6.10145423,87.803,87.76,10.254]
[1772492926776,6.10145423,87.803,87.754,6.32873101]
[1772492926977,6.10145423,87.803,87.719,14.15209497]
[1772492926978,6.10145423,87.803,87.731,6.32873101]
[1772492928171,10.25,87.801,87.731,6.32873101]
[1772492928371,6.04647411,87.817,87.743,6.2985494]
[1772492928576,6.04647411,87.83,87.743,6.2985494]
[1772492928977,6.04647411,87.83,87.775,6.2985494]
[1772492929184,6.04647411,87.83,87.761,6.2985494]
[1772492929383,6.04647411,87.828,87.761,6.2985494]
[1772492929877,6.04647411,87.794,87.743,10.256]
[1772492933175,6.04647411,87.794,87.753,10.255]
[1772492937177,6.04647411,87.794,87.745,16.5545494]
[1772492937582,6.04647411,87.794,87.746,6.2985494]
[1772492938286,6.04647411,87.794,87.754,10.255]
[1772492938579,8.90898554,87.82,87.755,6.2985494]
[1772492938580,6.04647411,87.807,87.755,6.2985494]
[1772492939182,10.249,87.806,87.756,16.5535494]
[1772492939384,6.04647411,87.807,87.743,6.2985494]
[1772492940184,10.25,87.8,87.754,10.255]
[1772492940382,6.04647411,87.799,87.754,10.255]
[1772492940583,6.04647411,87.799,87.729,6.2985494]
[1772492940887,6.04647411,87.789,87.737,10.257]
[1772492941684,6.04647411,87.801,87.745,6.2985494]
[1772492941888,6.04647411,87.819,87.745,6.2985494]
[1772492942591,6.04647411,87.819,87.772,6.2985494]
[1772492942778,8.90898554,87.84,87.772,6.2985494]
[1772492942982,6.04647411,87.83,87.772,6.2985494]
[1772492943982,6.04647411,87.83,87.741,6.2985494]
[1772492944189,6.04647411,87.819,87.724,6.2985494]
[1772492944388,6.04647411,87.799,87.724,6.2985494]
[1772492944786,10.251,87.787,87.737,10.257]
[1772492945181,6.04647411,87.799,87.738,6.2985494]
[1772492945788,6.04647411,87.799,87.751,10.255]
[1772492947186,10.25,87.797,87.751,10.255]
[1772492947386,8.90898554,87.8,87.741,10.257]
[1772492947387,6.04647411,87.796,87.741,10.257]
[1772492947694,6.04647411,87.796,87.738,6.2985494]
[1772492949191,10.251,87.793,87.748,10.256]
[1772492949386,16.29747411,87.793,87.748,10.256]
[1772492949790,6.04647411,87.812,87.749,6.2985494]
[1772492949995,10.249,87.81,87.765,16.5525494]
[1772492950190,6.04647411,87.867,87.77,15.20753494]
[1772492950393,6.04647411,87.867,87.771,6.2985494]
[1772492950688,6.04647411,87.867,87.751,159.535]
[1772492950689,6.04647411,87.865,87.808,6.2985494]
[1772492951194,6.04647411,87.824,87.77,10.253]
[1772492952294,8.90898554,87.83,87.77,10.253]
[1772492952295,16.29347411,87.82,87.77,10.253]
[1772492954098,6.04647411,87.819,87.77,10.253]
[1772492954399,10.248,87.816,87.77,10.253]
[1772492958304,8.90898554,87.83,87.774,6.39563516]
[1772492958902,10.247,87.82,87.775,10.253]
[1772492959904,6.69098359,87.819,87.775,16.64863516]
[1772492960100,6.69098359,87.816,87.768,10.253]
[1772492960696,6.69098359,87.813,87.76,16.64963516]
[1772492962107,6.69098359,87.799,87.738,6.39563516]
[1772492963105,6.69098359,87.788,87.737,10.257]
[1772492963300,6.69098359,87.788,87.723,6.39563516]
[1772492964307,8.90898554,87.79,87.723,6.39563516]
[1772492964308,6.69098359,87.778,87.723,6.39563516]
[1772492965507,10.252,87.777,87.729,10.258]
[1772492966301,10.252,87.777,87.729,16.65363516]
[1772492967207,6.69098359,87.808,87.737,6.39563516]
[1772492968206,10.25,87.801,87.753,10.255]
[1772492969012,6.69098359,87.808,87.745,16.65163516]
[1772492969209,6.69098359,87.808,87.728,6.39563516]
[1772492970211,10.252,87.783,87.728,6.39563516]
[1772492970412,6.69098359,87.79,87.728,6.39563516]
[1772492970811,6.69098359,87.809,87.728,6.39563516]
[1772492971213,6.69098359,87.809,87.725,14.15209497]
[1772492971214,10.25,87.797,87.755,10.255]
[1772492971414,6.69098359,87.809,87.751,6.39563516]
[1772492971610,6.69098359,87.809,87.726,6.39563516]
[1772492973215,10.252,87.785,87.739,10.257]
[1772492974021,10.252,87.785,87.739,16.65263516]
[1772492974216,10.252,87.785,87.745,10.256]
[1772492974824,10.252,87.785,87.739,6.39563516]
[1772492976323,10.252,87.785,87.74,10.257]
[1772492976927,8.90476322,87.81,87.748,6.39563516]
[1772492977127,6.69098359,87.809,87.748,6.39563516]
[1772492978318,6.69098359,87.802,87.756,10.255]
[1772492979225,10.25,87.8,87.756,10.255]
[1772492979619,6.69098359,87.799,87.756,10.255]
[1772492980326,6.69098359,87.799,87.762,10.254]
[1772492980627,6.69098359,87.799,87.748,6.39563516]
[1772492982128,3.32257302,87.8,87.751,6.39563516]
[1772492982328,6.69098359,87.811,87.751,6.39563516]
[1772492982329,3.32257302,87.81,87.751,6.39563516]
[1772492982630,3.32257302,87.8,87.76,10.254]
[1772492983930,6.69098359,87.797,87.753,6.39563516]
[1772492984128,3.32257302,87.79,87.753,6.39563516]
[1772492984630,6.69098359,87.797,87.753,6.39563516]
[1772492985330,10.25,87.795,87.755,10.255]
[1772492985825,10.251,87.789,87.753,6.39563516]
[1772492987226,3.32257302,87.79,87.753,6.39563516]
[1772492987227,3.32257302,87.79,87.754,10.255]
[1772492987633,10.25,87.796,87.754,10.255]
[1772492991232,6.69720505,87.795,87.754,10.255]
[1772492991435,13.57357302,87.79,87.753,6.39563516]
[1772492991835,3.32257302,87.79,87.753,16.65063516]
[1772492994931,3.32257302,87.79,87.694,28.15802349]
[1772492994932,3.32257302,87.77,87.731,6.57409255]
[1772492995133,6.69720505,87.769,87.711,6.57409255]
[1772492995340,3.32257302,87.76,87.711,6.57409255]
[1772492996138,6.69720505,87.769,87.729,10.258]
[1772492996638,6.69720505,87.769,87.725,6.57409255]
[1772492996639,3.32257302,87.78,87.734,6.57409255]
[1772492996832,6.69720505,87.782,87.734,6.57409255]
[1772492997027,6.69720505,87.789,87.74,9.89666557]
[1772492997536,6.69720505,87.789,87.74,6.57409255]
[1772492998233,10.251,87.786,87.741,10.257]
[1772492998636,3.32257302,87.78,87.741,10.257]
[1772492999534,3.32257302,87.77,87.726,6.57409255]
[1772493000043,3.32257302,87.77,87.727,6.57409255]
[1772493000339,10.01977807,87.77,87.727,6.57409255]
[1772493000940,14.15526639,87.826,87.713,6.57409255]
[1772493000941,6.69720505,87.759,87.713,6.57409255]
[1772493001339,10.255,87.757,87.713,6.57409255]
[1772493001535,10.01977807,87.75,87.699,6.57409255]
[1772493001741,6.69720505,87.749,87.699,6.57409255]
[1772493001936,3.32257302,87.75,87.707,6.57409255]
[1772493002243,3.32257302,87.77,87.721,6.57409255]
[1772493003442,3.32257302,87.77,87.726,6.57409255]
[1772493003838,10.61935026,87.809,87.689,20.526]
[1772493003839,3.32257302,87.79,87.74,3.32257302]
[1772493004043,3.32257302,87.79,87.741,6.57409255]
[1772493004442,10.01977807,87.79,87.741,6.57409255]
[1772493005346,6.69720505,87.788,87.741,6.57409255]
[1772493006243,10.252,87.785,87.741,6.57409255]
[1772493009151,6.69720505,87.782,87.728,6.57409255]
[1772493009842,6.69720505,87.802,87.714,6.57409255]
[1772493010050,6.69720505,87.797,87.718,6.57409255]
[1772493010242,6.69720505,87.769,87.721,10.259]
[1772493010443,6.69720505,87.769,87.718,6.57409255]
[1772493011061,6.69720505,87.758,87.704,6.57409255]
[1772493011646,6.69720505,87.758,87.707,6.57409255]
[1772493012251,6.69720505,87.758,87.708,6.57409255]
[1772493013347,6.69720505,87.756,87.708,6.57409255]
[1772493013748,6.69720505,87.752,87.708,16.83409255]
[1772493013947,6.69720505,87.752,87.708,6.57409255]
[1772493014453,6.69720505,87.769,87.708,6.57409255]
[1772493015259,10.254,87.761,87.715,10.26]
[1772493015454,6.69720505,87.769,87.716,6.57409255]
[1772493016158,6.69720505,87.769,87.721,10.259]
[1772493016159,10.254,87.762,87.721,10.259]
[1772493016655,10.252,87.78,87.729,6.57409255]
[1772493017158,6.69720505,87.784,87.729,6.57409255]
[1772493017355,10.25,87.796,87.752,10.255]
[1772493017957,16.91103204,87.796,87.752,10.255]
[1772493018156,6.66103204,87.788,87.745,6.37214395]
[1772493018355,6.66103204,87.788,87.744,10.256]
[1772493019258,10.252,87.785,87.737,10.257]
[1772493020361,6.66103204,87.784,87.732,6.24039355]
[1772493020858,6.66103204,87.784,87.711,6.24039355]
[1772493021053,6.66103204,87.77,87.728,10.258]
[1772493021954,6.66103204,87.77,87.729,6.24039355]
[1772493022162,10.252,87.785,87.738,6.24039355]
[1772493023056,10.251,87.793,87.741,6.24039355]
[1772493023249,6.66103204,87.818,87.741,6.24039355]
[1772493024255,10.249,87.81,87.761,10.254]
[1772493024455,10.249,87.81,87.761,16.49439355]
[1772493025251,10.249,87.81,87.762,6.24039355]
[1772493025658,10.249,87.81,87.764,10.254]
[1772493026559,16.90903204,87.818,87.773,6.24039355]
[1772493026857,20.485,87.866,87.773,6.24039355]
[1772493026858,6.66103204,87.844,87.773,6.24039355]
[1772493027757,10.248,87.819,87.774,10.253]
[1772493028159,6.66103204,87.818,87.755,6.24039355]
[1772493028459,6.66103204,87.815,87.764,10.254]
[1772493029156,6.66103204,87.815,87.764,16.49439355]
[1772493031655,6.66103204,87.815,87.769,6.24039355]
[1772493031857,10.247,87.826,87.769,6.24039355]
[1772493032264,16.90803204,87.826,87.769,6.24039355]
[1772493032564,6.66103204,87.825,87.769,6.24039355]
[1772493032953,10.247,87.822,87.769,6.24039355]
[1772493033155,6.66103204,87.821,87.774,10.253]
[1772493033359,140.11656617,88.874,87.774,6.24039355]
[1772493033360,6.66103204,87.843,87.774,6.24039355]
[1772493034261,10.245,87.842,87.794,10.25]
[1772493034761,6.66103204,87.841,87.76,8.89703853]
[1772493034967,6.66103204,87.841,87.761,6.24039355]
[1772493035754,10.247,87.821,87.774,6.24039355]
[1772493037359,6.66103204,87.82,87.774,6.24039355]
[1772493037767,8.89703853,87.85,87.774,6.24039355]
[1772493037768,6.66103204,87.849,87.774,6.24039355]
[1772493038367,6.66103204,87.864,87.798,6.24039355]
[1772493039072,336.92484556,87.878,87.817,6.24039355]
[1772493039462,6.66103204,87.877,87.817,6.24039355]
[1772493040267,10.241,87.875,87.826,10.247]
[1772493040863,6.66103204,87.867,87.818,10.248]
[1772493041071,6.66103204,87.867,87.817,6.24039355]
[1772493041570,10.243,87.861,87.817,6.24039355]
[1772493042169,16.90403204,87.861,87.817,6.24039355]
[1772493043472,6.66103204,87.861,87.818,10.248]
[1772493043972,6.66103204,87.861,87.817,6.24039355]
[1772493044375,10.243,87.857,87.817,6.24039355]
[1772493044871,6.66103204,87.861,87.819,10.247]
[1772493045664,6.66103204,87.861,87.817,6.24039355]
[1772493046073,6.66103204,87.856,87.803,10.249]
[1772493046269,6.66103204,87.856,87.785,6.24039355]
[1772493046474,6.66103204,87.849,87.785,6.24039355]
[1772493047568,10.245,87.839,87.79,6.49439072]
[1772493048170,10.245,87.839,87.792,10.251]
[1772493048369,10.245,87.839,87.792,16.74539072]
[1772493048865,10.245,87.839,87.795,10.25]
[1772493049073,10.244,87.846,87.796,6.49439072]
[1772493049669,6.44865285,87.869,87.806,6.49439072]
[1772493051273,10.243,87.862,87.816,6.49439072]
[1772493051480,6.44865285,87.869,87.816,6.49439072]
[1772493051778,6.44865285,87.869,87.817,16.74239072]
[1772493052978,336.92484556,87.878,87.79,8.89703853]
[1772493052979,6.44865285,87.86,87.809,10.249]
[1772493053374,6.44865285,87.874,87.81,6.49439072]
[1772493054379,10.242,87.863,87.818,6.49439072]
[1772493056483,6.44865285,87.874,87.822,6.49439072]
[1772493057676,10.243,87.859,87.822,6.49439072]
[1772493058084,336.92484556,87.878,87.79,8.89703853]
[1772493058085,6.44865285,87.858,87.791,6.49439072]
[1772493059081,6.44865285,87.858,87.79,8.89703853]
[1772493059082,6.44865285,87.858,87.812,10.248]
[1772493059384,6.44865285,87.858,87.808,6.49439072]
[1772493060481,6.44865285,87.872,87.808,6.49439072]
[1772493062383,10.242,87.864,87.817,10.248]
[1772493062979,10.242,87.864,87.817,16.74239072]
[1772493063180,10.242,87.864,87.82,10.247]
[1772493063589,10.242,87.864,87.82,16.74139072]
[1772493063785,16.68965285,87.872,87.827,6.49439072]
[1772493063982,336.92484556,87.878,87.827,6.49439072]
[1772493064474,336.92484556,87.878,87.836,6.49439072]
[1772493065084,6.44865285,87.885,87.836,6.49439072]
[1772493065384,6.44865285,87.919,87.85,6.49439072]
[1772493065581,6.44865285,87.933,87.851,6.49439072]
[1772493065777,6.44865285,87.933,87.89,6.49439072]
[1772493065979,8.89703853,87.96,87.89,6.49439072]
[1772493065980,6.44865285,87.949,87.89,6.49439072]
[1772493066381,6.44865285,87.947,87.891,16.73339072]
[1772493067185,6.44865285,87.947,87.894,10.239]
[1772493067387,6.44865285,87.947,87.895,6.49439072]
[1772493068787,6.44865285,87.945,87.896,10.238]
[1772493068985,6.44865285,87.945,87.864,6.49439072]
[1772493069491,6.44865285,87.94,87.882,10.24]
[1772493069889,6.44865285,87.94,87.88,6.49439072]
[1772493070289,10.235,87.925,87.88,6.49439072]
[1772493070589,6.44865285,87.924,87.88,6.49439072]
[1772493071091,6.44865285,87.922,87.861,6.49439072]
[1772493071389,6.44865285,87.922,87.844,6.49439072]
[1772493071983,6.44865285,87.909,87.855,16.73739072]
[1772493072791,10.237,87.907,87.86,10.243]
[1772493073484,8.89703853,87.91,87.843,477.57635806]
[1772493073485,6.44865285,87.902,87.843,477.57635806]
[1772493073687,6.44865285,87.889,87.825,6.49439072]
[1772493075186,16.68865285,87.882,87.826,10.247]
[1772493075587,6.44865285,87.881,87.826,10.247]
[1772493076184,6.44865285,87.881,87.826,16.74139072]
[1772493076379,6.44865285,87.881,87.827,6.49439072]
[1772493076590,6.44865285,87.889,87.834,6.49439072]
[1772493078189,10.24,87.887,87.841,10.245]
[1772493079087,6.29767311,87.869,87.804,6.33379743]
[1772493081194,8.89703853,87.87,87.78,8.89703853]
[1772493081195,19.13903853,87.87,87.818,6.33379743]
[1772493082295,19.13903853,87.87,87.82,10.247]
[1772493082595,10.242,87.87,87.82,10.247]
[1772493082888,8.89703853,87.89,87.818,6.33379743]
[1772493082889,6.29767311,87.869,87.818,6.33379743]
[1772493083294,10.243,87.859,87.803,6.33379743]
[1772493083496,16.54067311,87.859,87.803,6.33379743]
[1772493083994,6.29767311,87.859,87.812,6.33379743]
[1772493084897,8.89703853,87.87,87.784,14.07924344]
[1772493084898,6.29767311,87.849,87.784,6.33379743]
[1772493086193,6.29767311,87.849,87.805,10.249]
[1772493086395,6.29767311,87.849,87.806,6.33379743]
[1772493087294,6.29767311,87.849,87.808,10.249]
[1772493087701,6.29767311,87.863,87.809,6.33379743]
[1772493089600,6.29767311,87.846,87.803,10.249]
[1772493089799,15.18509748,87.86,87.804,6.33379743]
[1772493090000,6.29767311,87.859,87.804,6.33379743]
[1772493090697,6.29767311,87.859,87.806,10.249]
[1772493091001,6.29767311,87.859,87.807,6.33379743]
[1772493092205,10.243,87.858,87.811,10.248]